fUST/lending_fUST_20260118
["ID","MTS","AMOUNT","RATE_DAILY","PERIOD"]
[402509169,1768690273374,-500.0,0.00017534,3]
[402509171,1768690273384,-500.0,0.00017534,3]
[402509173,1768690273394,-500.0,0.00017534,3]
[402509175,1768690273405,-1112.65,0.00017534,3]
[402509177,1768690273416,-748.74,0.00017534,3]
[402509179,1768690273427,-500.0,0.00017534,3]
[402509181,1768690273440,-703.25,0.00017534,3]
[402509183,1768690273451,-500.0,0.00017534,3]
[402509186,1768690273460,-500.0,0.00017534,3]
[402509187,1768690273470,-500.0,0.00017534,3]
[402509189,1768690273480,-1337.44,0.00017534,3]
[402509191,1768690273491,-531.66,0.00017534,3]
[402509193,1768690273500,-500.0,0.00017534,3]
[402509195,1768690273511,-709.13,0.00017534,3]
[402509198,1768690273520,-720.49,0.00017534,3]
[402509200,1768690273530,-1204.98,0.00017534,3]
[402509202,1768690273540,-564.62,0.00017534,3]
[402509203,1768690273549,-1200.0,0.00017534,2]
[402509206,1768690273558,-500.0,0.00017534,3]
[402509208,1768690273568,-500.0,0.00017534,3]
[402509210,1768690273578,-568.78,0.00017534,3]
[402509211,1768690273587,-500.0,0.00017534,3]
[402509214,1768690273596,-382.56052383,0.00017534,3]
[402509216,1768690273606,-760.21,0.00017534,3]
[402509217,1768690273616,-500.0,0.00017534,3]
[402509219,1768690273626,-500.0,0.00017534,3]
[402509222,1768690273635,-500.0,0.00017534,3]
[402509224,1768690273645,-500.0,0.00017534,3]
[402509226,1768690273655,-500.0,0.00017534,3]
[402509228,1768690273665,-500.0,0.00017534,3]
[402509230,1768690273675,-807.96,0.00017534,3]
[402509231,1768690273685,-1077.86,0.00017534,3]
[402509233,1768690273696,-643.96,0.00017534,3]
[402509236,1768690273707,-500.0,0.00017534,3]
[402509238,1768690273716,-500.0,0.00017534,3]
[402509240,1768690273727,-738.11,0.00017534,3]
[402509242,1768690273738,-500.0,0.00017534,3]
[402509243,1768690273747,-649.78,0.00017534,3]
[402509245,1768690273757,-500.0,0.00017534,3]
[402509248,1768690273767,-701.58,0.00017534,3]
[402509250,1768690273776,-764.69,0.00017534,3]
[402509252,1768690273787,-500.0,0.00017534,3]
[402509254,1768690273797,-1268.1,0.00017534,3]
[402509256,1768690273806,-500.0,0.00017534,3]
[402509258,1768690273815,-1195.56,0.00017534,3]
[402509260,1768690273825,-1026.17,0.00017534,3]
[402509262,1768690273835,-570.43844775,0.00017534,3]
[402509264,1768690273844,-500.0,0.00017534,3]
[402509266,1768690273854,-158.29438198,0.00017534,3]
[402509268,1768690273864,-717.34,0.00017534,3]
[402509270,1768690273873,-500.0,0.00017534,3]
[402509272,1768690273883,-500.0,0.00017534,3]
[402509274,1768690273892,-500.0,0.00017534,3]
[402509276,1768690273902,-195.67,0.00017534,3]
[402509278,1768690273912,-500.0,0.00017534,3]
[402509280,1768690273922,-500.0,0.00017534,3]
[402509282,1768690273932,-500.0,0.00017534,3]
[402509284,1768690273941,-811.2,0.00017534,3]
[402509286,1768690273951,-500.0,0.00017534,3]
[402509288,1768690273960,-532.59,0.00017534,3]
[402509290,1768690273969,-500.0,0.00017534,3]
[402509292,1768690273979,-591.59,0.00017534,3]
[402509294,1768690273989,-500.0,0.00017534,3]
[402509296,1768690273998,-500.0,0.00017534,3]
[402509299,1768690274008,-718.09,0.00017534,3]
[402509301,1768690274018,-1212.85,0.00017534,3]
[402509303,1768690274027,-651.61,0.00017534,3]
[402509305,1768690274036,-500.0,0.00017534,3]
[402509307,1768690274045,-1907.03,0.00017534,3]
[402509309,1768690274055,-717.14,0.00017534,3]
[402509311,1768690274064,-517.83,0.00017534,3]
[402509313,1768690274075,-673.69,0.00017534,3]
[402509315,1768690274084,-500.0,0.00017534,3]
[402509317,1768690274094,-653.71,0.00017534,3]
[402509319,1768690274104,-502.5,0.00017534,3]
[402509321,1768690274113,-692.54,0.00017534,3]
[402509323,1768690274123,-500.0,0.00017534,3]
[402509325,1768690274132,-1247.67,0.00017534,3]
[402509327,1768690274141,-500.0,0.00017534,3]
[402509329,1768690274151,-1000.0,0.00017534,2]
[402509331,1768690274160,-500.0,0.00017534,3]
[402509333,1768690274169,-500.0,0.00017534,3]
[402509335,1768690274179,-500.0,0.00017534,3]
[402509337,1768690274188,-1000.01,0.00017534,3]
[402509339,1768690274198,-500.0,0.00017534,3]
[402509341,1768690274207,-500.0,0.00017534,3]
[402509343,1768690274217,-708.28,0.00017534,3]
[402509345,1768690274227,-500.0,0.00017534,3]
[402509347,1768690274237,-1023.02,0.00017534,3]
[402509349,1768690274247,-500.0,0.00017534,3]
[402509351,1768690274256,-729.88,0.00017534,3]
[402509353,1768690274267,-529.68,0.00017534,3]
[402509356,1768690274277,-500.0,0.00017534,3]
[402509358,1768690274287,-500.0,0.00017534,3]
[402509360,1768690274296,-500.0,0.00017534,3]
[402509362,1768690274306,-1424.83,0.00017534,3]
[402509364,1768690274316,-500.0,0.00017534,3]
[402509366,1768690274330,-1648.07,0.00017534,3]
[402509368,1768690274339,-500.0,0.00017534,3]
[402509370,1768690274349,-926.45,0.00017534,3]
[402509372,1768690274359,-500.0,0.00017534,3]
[402509374,1768690274369,-500.0,0.00017534,3]
[402509376,1768690274379,-151.0,0.00017534,2]
[402509378,1768690274388,-1031.93,0.00017534,3]
[402509380,1768690274399,-500.0,0.00017534,3]
[402509382,1768690274409,-500.0,0.00017534,3]
[402509384,1768690274418,-500.0,0.00017534,3]
[402509386,1768690274427,-500.0,0.00017534,3]
[402509388,1768690274436,-956.48,0.00017534,3]
[402509390,1768690274447,-1278.05,0.00017534,3]
[402509392,1768690274456,-1083.73,0.00017534,3]
[402509394,1768690274467,-500.0,0.00017534,3]
[402509396,1768690274476,-996.38,0.00017534,3]
[402509398,1768690274485,-500.0,0.00017534,3]
[402509400,1768690274495,-500.0,0.00017534,3]
[402509402,1768690274504,-512.1,0.00017534,3]
[402509404,1768690274514,-534.44,0.00017534,3]
[402509406,1768690274524,-1142.0,0.00017534,3]
[402509408,1768690274533,-500.0,0.00017534,3]
[402509410,1768690274543,-500.0,0.00017534,3]
[402509412,1768690274552,-609.19,0.00017534,3]
[402509414,1768690274562,-1565.89,0.00017534,3]
[402509416,1768690274571,-902.19,0.00017534,3]
[402509418,1768690274581,-1625.11,0.00017534,3]
[402509420,1768690274591,-822.5,0.00017534,3]
[402509422,1768690274601,-500.0,0.00017534,3]
[402509424,1768690274611,-509.14,0.00017534,3]
[402509426,1768690274621,-500.0,0.00017534,3]
[402509428,1768690274631,-500.0,0.00017534,3]
[402509430,1768690274642,-507.95,0.00017534,3]
[402509433,1768690274652,-631.39,0.00017534,3]
[402509435,1768690274661,-500.0,0.00017534,3]
[402509437,1768690274671,-500.0,0.00017534,3]
[402509439,1768690274681,-500.0,0.00017534,3]
[402509441,1768690274690,-1958.41,0.00017534,3]
[402509443,1768690274699,-500.0,0.00017534,3]
[402509445,1768690274709,-1228.38,0.00017534,3]
[402509447,1768690274719,-618.12,0.00017534,3]
[402509449,1768690274729,-500.0,0.00017534,3]
[402509450,1768690274739,-500.0,0.00017534,3]
[402509453,1768690274748,-151.0,0.00017534,2]
[402509454,1768690274758,-500.0,0.00017534,3]
[402509457,1768690274768,-500.0,0.00017534,3]
[402509459,1768690274778,-500.0,0.00017534,3]
[402509461,1768690274787,-500.0,0.00017534,3]
[402509463,1768690274797,-568.07228824,0.00017534,3]
[402509465,1768690274807,-282.14565143,0.00017534,3]
[402509467,1768690274817,-532.04,0.00017534,3]
[402509469,1768690274827,-658.45,0.00017534,3]
[402509471,1768690274836,-660.45,0.00017534,3]
[402509473,1768690274846,-500.0,0.00017534,3]
[402509475,1768690274855,-500.0,0.00017534,3]
[402509477,1768690274864,-500.0,0.00017534,3]
[402509479,1768690274874,-588.04,0.00017534,3]
[402509481,1768690274883,-698.4,0.00017534,3]
[402509483,1768690274893,-500.0,0.00017534,3]
[402509485,1768690274902,-500.0,0.00017534,3]
[402509487,1768690274912,-500.0,0.00017534,3]
[402509489,1768690274922,-500.0,0.00017534,3]
[402509491,1768690274931,-500.0,0.00017534,3]
[402509493,1768690274941,-577.4,0.00017534,3]
[402509495,1768690274950,-500.0,0.00017534,3]
[402509497,1768690274960,-1325.56,0.00017534,3]
[402509499,1768690274970,-500.0,0.00017534,3]
[402509501,1768690274980,-500.0,0.00017534,3]
[402509503,1768690274989,-935.84,0.00017534,3]
[402509505,1768690274999,-743.48,0.00017534,3]
[402509507,1768690275009,-500.0,0.00017534,3]
[402509509,1768690275019,-616.9,0.00017534,3]
[402509511,1768690275029,-500.0,0.00017534,3]
[402509513,1768690275039,-869.48,0.00017534,3]
[402509515,1768690275048,-500.0,0.00017534,3]
[402509517,1768690275059,-1211.78,0.00017534,3]
[402509519,1768690275069,-602.54532275,0.00017534,3]
[402509521,1768690275078,-500.0,0.00017534,3]
[402509523,1768690275088,-500.0,0.00017534,3]
[402509525,1768690275097,-632.36,0.00017534,3]
[402509527,1768690275107,-913.02,0.00017534,3]
[402509530,1768690275117,-1274.41,0.00017534,3]
[402509532,1768690275127,-500.0,0.00017534,3]
[402509534,1768690275136,-1122.48,0.00017534,3]
[402509535,1768690275145,-417.99235763,0.00017534,3]
[402509538,1768690275155,-221.78015964,0.00017534,3]
[402509539,1768690275164,-500.0,0.00017534,3]
[402509541,1768690275174,-590.51,0.00017534,3]
[402509544,1768690275185,-1318.01,0.00017534,3]
[402509546,1768690275194,-500.0,0.00017534,3]
[402509547,1768690275204,-938.59,0.00017534,3]
[402509550,1768690275214,-500.0,0.00017534,3]
[402509552,1768690275225,-500.0,0.00017534,3]
[402509554,1768690275235,-500.0,0.00017534,3]
[402509555,1768690275244,-500.0,0.00017534,3]
[402509558,1768690275254,-1783.16,0.00017534,3]
[402509560,1768690275264,-500.0,0.00017534,3]
[402509562,1768690275274,-1098.28,0.00017534,3]
[402509564,1768690275284,-500.0,0.00017534,3]
[402509566,1768690275293,-501.82,0.00017534,3]
[402509568,1768690275303,-734.84,0.00017534,3]
[402509570,1768690275312,-909.25,0.00017534,3]
[402509572,1768690275326,-500.0,0.00017534,3]
[402509574,1768690275336,-551.88,0.00017534,3]
[402509576,1768690275347,-500.0,0.00017534,3]
[402509578,1768690275357,-500.0,0.00017534,3]
[402509580,1768690275367,-500.0,0.00017534,3]
[402509582,1768690275376,-620.38,0.00017534,3]
[402509584,1768690275385,-500.0,0.00017534,3]
[402509587,1768690275394,-500.0,0.00017534,3]
[402509589,1768690275404,-506.62,0.00017534,3]
[402509591,1768690275413,-500.0,0.00017534,3]
[402509593,1768690275423,-500.0,0.00017534,3]
[402509595,1768690275432,-519.22,0.00017534,3]
[402509597,1768690275442,-500.0,0.00017534,3]
[402509599,1768690275452,-836.42,0.00017534,3]
[402509601,1768690275462,-500.0,0.00017534,3]
[402509603,1768690275471,-500.0,0.00017534,3]
[402509605,1768690275481,-500.0,0.00017534,3]
[402509607,1768690275491,-437.89239693,0.00017534,3]
[402509609,1768690275501,-11282.1,0.00017534,3]
[402509611,1768690275512,-824.54,0.00017534,3]
[402509614,1768690275523,-500.0,0.00017534,3]
[402509616,1768690275532,-500.0,0.00017534,3]
[402509618,1768690275543,-1192.22,0.00017534,3]
[402509620,1768690275553,-500.0,0.00017534,3]
[402509622,1768690275564,-500.0,0.00017534,3]
[402509643,1768690275757,-500.0,0.00017534,3]
[402509645,1768690275767,-719.38,0.00017534,3]
[402509647,1768690275777,-500.0,0.00017534,3]
[402509649,1768690275786,-543.17,0.00017534,3]
[402509651,1768690275796,-521.12,0.00017534,3]
[402509653,1768690275805,-696.31,0.00017534,3]
[402509655,1768690275815,-665.4,0.00017534,3]
[402509657,1768690275824,-500.0,0.00017534,3]
[402509659,1768690275834,-1268.1,0.00017534,3]
[402509661,1768690275843,-500.0,0.00017534,3]
[402509663,1768690275852,-2760.78,0.00017534,3]
[402509665,1768690275862,-500.0,0.00017534,3]
[402509667,1768690275871,-500.0,0.00017534,3]
[402509669,1768690275880,-500.0,0.00017534,3]
[402509671,1768690275889,-853.49,0.00017534,3]
[402509674,1768690275899,-990.52,0.00017534,3]
[402509676,1768690275908,-1042.34,0.00017534,3]
[402509677,1768690275917,-923.99,0.00017534,3]
[402509680,1768690275927,-500.0,0.00017534,3]
[402509681,1768690275937,-1012.92,0.00017534,3]
[402509684,1768690275946,-664.25,0.00017534,3]
[402509686,1768690275956,-516.14,0.00017534,3]
[402509687,1768690275965,-742.53,0.00017534,3]
[402509689,1768690275974,-500.0,0.00017534,3]
[402509691,1768690275983,-500.0,0.00017534,3]
[402509693,1768690275993,-1477.08,0.00017534,3]
[402509695,1768690276002,-500.0,0.00017534,3]
[402509697,1768690276011,-787.6,0.00017534,3]
[402509699,1768690276021,-897.74,0.00017534,3]
[402509701,1768690276030,-1021.5,0.00017534,3]
[402509703,1768690276040,-2290.58,0.00017534,3]
[402509705,1768690276049,-500.0,0.00017534,3]
[402509707,1768690276058,-576.96946358,0.00017534,3]
[402509709,1768690276068,-580.86,0.00017534,3]
[402509711,1768690276078,-500.0,0.00017534,3]
[402509713,1768690276087,-649.93,0.00017534,3]
[402509715,1768690276098,-500.0,0.00017534,3]
[402509717,1768690276108,-210.5095372,0.00017534,3]
[402509719,1768690276120,-500.0,0.00017534,3]
[402509721,1768690276129,-515.25,0.00017534,3]
[402509723,1768690276141,-859.97,0.00017534,3]
[402509726,1768690276152,-500.0,0.00017534,3]
[402509727,1768690276162,-852.82,0.00017534,3]
[402509729,1768690276172,-500.0,0.00017534,3]
[402509732,1768690276181,-500.0,0.00017534,3]
[402509733,1768690276192,-500.0,0.00017534,3]
[402509736,1768690276202,-1221.92,0.00017534,3]
[402509738,1768690276212,-845.98,0.00017534,3]
[402509740,1768690276222,-716.77,0.00017534,3]
[402509742,1768690276232,-500.0,0.00017534,3]
[402509744,1768690276243,-500.0,0.00017534,3]
[402509746,1768690276253,-715.41,0.00017534,3]
[402509748,1768690276263,-500.0,0.00017534,3]
[402509750,1768690276272,-581.82,0.00017534,3]
[402509752,1768690276282,-500.0,0.00017534,3]
[402509754,1768690276292,-712.39,0.00017534,3]
[402509756,1768690276301,-852.94,0.00017534,3]
[402509758,1768690276311,-782.26,0.00017534,3]
[402509760,1768690276324,-500.0,0.00017534,3]
[402509762,1768690276335,-500.0,0.00017534,3]
[402509764,1768690276344,-184.00558895,0.00017534,3]
[402509766,1768690276354,-500.0,0.00017534,3]
[402509768,1768690276365,-1066.77,0.00017534,3]
[402509770,1768690276374,-982.72,0.00017534,3]
[402509772,1768690276383,-500.0,0.00017534,3]
[402509774,1768690276394,-206.13170951,0.00017534,3]
[402509776,1768690276405,-500.0,0.00017534,3]
[402509778,1768690276414,-500.0,0.00017534,3]
[402509780,1768690276424,-888.49,0.00017534,3]
[402509782,1768690276434,-951.59,0.00017534,3]
[402509784,1768690276443,-1067.93,0.00017534,3]
[402509786,1768690276453,-500.0,0.00017534,3]
[402509788,1768690276462,-500.0,0.00017534,3]
[402509790,1768690276472,-917.71,0.00017534,3]
[402509793,1768690276482,-500.0,0.00017534,3]
[402509795,1768690276491,-500.0,0.00017534,3]
[402509796,1768690276501,-1013.76,0.00017534,3]
[402509799,1768690276511,-500.0,0.00017534,3]
[402509800,1768690276520,-527.44065254,0.00017534,3]
[402509802,1768690276530,-500.0,0.00017534,3]
[402509805,1768690276540,-1126.76,0.00017534,3]
[402509807,1768690276549,-983.13,0.00017534,3]
[402509809,1768690276559,-500.0,0.00017534,3]
[402509811,1768690276569,-2222.48,0.00017534,3]
[402509812,1768690276578,-967.62,0.00017534,3]
[402509815,1768690276588,-1769.73,0.00017534,3]
[402509817,1768690276598,-918.79,0.00017534,3]
[402509819,1768690276607,-953.07,0.00017534,3]
[402509821,1768690276616,-971.31,0.00017534,3]
[402509823,1768690276625,-500.0,0.00017534,3]
[402509825,1768690276635,-500.0,0.00017534,3]
[402509827,1768690276645,-734.94,0.00017534,3]
[402509828,1768690276654,-596.26,0.00017534,3]
[402509831,1768690276664,-500.0,0.00017534,3]
[402509833,1768690276673,-1276.22,0.00017534,3]
[402509835,1768690276683,-155.33823981,0.00017534,3]
[402509837,1768690276692,-500.0,0.00017534,3]
[402509839,1768690276702,-1013.32,0.00017534,3]
[402509841,1768690276712,-500.0,0.00017534,3]
[402509843,1768690276721,-1040.56,0.00017534,3]
[402509845,1768690276731,-500.0,0.00017534,2]
[402509846,1768690276740,-155.6746373,0.00017534,3]
[402509849,1768690276750,-659.0,0.00017534,3]
[402509851,1768690276760,-500.0,0.00017534,3]
[402509853,1768690276769,-500.0,0.00017534,3]
[402509855,1768690276779,-561.99,0.00017534,3]
[402509857,1768690276788,-500.0,0.00017534,3]
[402509859,1768690276797,-500.0,0.00017534,3]
[402509861,1768690276807,-517.45,0.00017534,3]
[402509863,1768690276816,-500.0,0.00017534,2]
[402509865,1768690276826,-500.0,0.00017534,3]
[402509867,1768690276836,-500.0,0.00017534,3]
[402509869,1768690276847,-922.41,0.00017534,3]
[402509870,1768690276857,-359.70357189,0.00017534,3]
[402509872,1768690276867,-726.73,0.00017534,3]
[402509874,1768690276876,-500.0,0.00017534,3]
[402509877,1768690276886,-6092.67,0.00017534,3]
[402509878,1768690276895,-500.0,0.00017534,3]
[402509881,1768690276905,-938.65,0.00017534,3]
[402509883,1768690276914,-500.0,0.00017534,3]
[402509885,1768690276924,-1576.41,0.00017534,3]
[402509887,1768690276934,-1252.44,0.00017534,3]
[402509889,1768690276944,-500.0,0.00017534,3]
[402509891,1768690276953,-500.0,0.00017534,3]
[402509893,1768690276963,-500.0,0.00017534,3]
[402509895,1768690276973,-500.0,0.00017534,3]
[402509897,1768690276983,-500.0,0.00017534,3]
[402509899,1768690276992,-905.84,0.00017534,3]
[402509901,1768690277001,-500.0,0.00017534,3]
[402509903,1768690277010,-500.0,0.00017534,2]
[402509905,1768690277020,-153.0,0.00017538,2]
[402509907,1768690277029,-421.00554913,0.00017582,15]
[402509909,1768690277039,-433.0,0.00017617,2]
[402509911,1768690277048,-13205.58024204,0.00017639,2]
[402509913,1768690277059,-500.0,0.00017663,2]
[402509915,1768690277069,-244.191,0.00017669,2]
[402509917,1768690277079,-232.572,0.00017669,2]
[402509919,1768690277088,-250.0,0.00017669,2]
[402509921,1768690277098,-261.666,0.00017669,2]
[402509923,1768690277107,-200.096,0.00017669,2]
[402509925,1768690277116,-267.705,0.00017669,2]
[402509927,1768690277126,-500.0,0.00017682,2]
[402509929,1768690277137,-1000.0,0.000177,2]
[402509931,1768690277146,-1000.0,0.000177,2]
[402509932,1768690277155,-1000.0,0.000177,2]
[402509935,1768690277165,-1000.0,0.000177,2]
[402509937,1768690277174,-1000.0,0.000177,2]
[402509939,1768690277184,-1000.0,0.000177,2]
[402509941,1768690277193,-1000.0,0.000177,2]
[402509943,1768690277203,-1000.0,0.000177,2]
[402509945,1768690277214,-1000.0,0.000177,2]
[402509947,1768690277223,-1000.0,0.000177,2]
[402509949,1768690277233,-547.485748,0.000177,2]
[402509951,1768690277242,-496.47127164,0.0001771,2]
[402509953,1768690277252,-2398.4119403,0.0001771,2]
[402509955,1768690277261,-3000.0,0.00017798,7]
[402509957,1768690277271,-281.0,0.000178,2]
[402509959,1768690277280,-634.87584173,0.00017808,3]
[402509961,1768690277290,-461.637948,0.00017808,7]
[402509963,1768690277299,-500.0,0.00017808,3]
[402509965,1768690277307,-500.0,0.00017808,3]
[402509967,1768690277317,-754.74,0.00017808,3]
[402509969,1768690277330,-560.03,0.00017808,3]
[402509970,1768690277341,-500.0,0.00017808,3]
[402509973,1768690277350,-1218.98,0.00017808,3]
[402509975,1768690277361,-500.0,0.00017808,3]
[402509977,1768690277370,-500.0,0.00017808,3]
[402509979,1768690277379,-500.0,0.00017808,3]
[402509981,1768690277388,-833.13,0.00017808,3]
[402509983,1768690277398,-523.53915177,0.00017808,3]
[402509984,1768690277407,-532.33,0.00017808,3]
[402509985,1768690277417,-275.91527615,0.00017808,3]
[402509986,1768690277426,-1124.54,0.00017808,3]
[402509987,1768690277435,-565.89,0.00017808,3]
[402509988,1768690277444,-606.31,0.00017808,3]
[402509989,1768690277454,-500.0,0.00017808,3]
[402509990,1768690277463,-500.0,0.00017808,3]
[402509991,1768690277472,-500.0,0.00017808,3]
[402509992,1768690277483,-603.28,0.00017808,3]
[402509993,1768690277492,-500.0,0.00017808,3]
[402509994,1768690277502,-569.91,0.00017808,3]
[402509995,1768690277511,-500.0,0.00017808,3]
[402509997,1768690277521,-500.0,0.00017808,3]
[402509998,1768690277531,-693.96,0.00017808,3]
[402510000,1768690277540,-500.0,0.00017808,3]
[402510002,1768690277550,-500.0,0.00017808,3]
[402510004,1768690277559,-500.0,0.00017808,3]
[402510006,1768690277569,-500.0,0.00017808,3]
[402510008,1768690277578,-638.05,0.00017808,3]
[402510010,1768690277588,-500.0,0.00017808,3]
[402510012,1768690277597,-500.0,0.00017808,3]
[402510014,1768690277606,-500.0,0.00017808,3]
[402510016,1768690277616,-500.0,0.00017808,3]
[402510018,1768690277625,-1254.24,0.00017808,3]
[402510020,1768690277636,-500.0,0.00017808,3]
[402510022,1768690277646,-1016.48,0.00017808,3]
[402510024,1768690277656,-589.29999839,0.00017808,3]
[402510026,1768690277666,-500.0,0.00017808,3]
[402510028,1768690277675,-744.84,0.00017808,3]
[402510030,1768690277685,-500.0,0.00017808,3]
[402510032,1768690277695,-666.3,0.00017808,3]
[402510034,1768690277707,-500.0,0.00017808,3]
[402510036,1768690277717,-500.0,0.00017808,3]
[402510038,1768690277726,-705.44,0.00017808,3]
[402510040,1768690277736,-500.0,0.00017808,3]
[402510042,1768690277746,-598.9,0.00017808,3]
[402510044,1768690277756,-500.0,0.00017808,3]
[402510046,1768690277765,-500.0,0.00017808,3]
[402510048,1768690277775,-500.0,0.00017808,3]
[402510050,1768690277784,-500.0,0.00017808,3]
[402510052,1768690277793,-1079.67,0.00017808,3]
[402510054,1768690277803,-893.97,0.00017808,3]
[402510056,1768690277812,-507.59,0.00017808,3]
[402510058,1768690277822,-655.07,0.00017808,3]
[402510060,1768690277831,-500.0,0.00017808,3]
[402510062,1768690277840,-565.41,0.00017808,3]
[402510064,1768690277850,-734.51,0.00017808,3]
[402510066,1768690277859,-500.0,0.00017808,3]
[402510068,1768690277868,-500.0,0.00017808,3]
[402510070,1768690277878,-500.0,0.00017808,3]
[402510072,1768690277888,-500.0,0.00017808,3]
[402510074,1768690277897,-507.91,0.00017808,3]
[402510076,1768690277906,-500.0,0.00017808,3]
[402510078,1768690277916,-263.19228657,0.00017808,3]
[402510080,1768690277925,-968.74,0.00017808,3]
[402510082,1768690277935,-500.0,0.00017808,3]
[402510084,1768690277945,-551.81,0.00017808,3]
[402510086,1768690277954,-500.0,0.00017808,3]
[402510088,1768690277963,-500.0,0.00017808,3]
[402510090,1768690277973,-500.0,0.00017808,3]
[402510092,1768690277982,-594.23,0.00017808,3]
[402510093,1768690277991,-560.83,0.00017808,3]
[402510095,1768690278001,-500.0,0.00017808,3]
[402510098,1768690278011,-500.0,0.00017808,3]
[402510099,1768690278020,-620.36,0.00017808,3]
[402510101,1768690278030,-500.0,0.00017808,3]
[402510103,1768690278040,-500.0,0.00017808,3]
[402510106,1768690278049,-500.0,0.00017808,3]
[402510114,1768690278126,-1112.65,0.00017808,3]
[402510116,1768690278136,-748.74,0.00017808,3]
[402510118,1768690278145,-703.25,0.00017808,3]
[402510120,1768690278155,-500.0,0.00017808,3]
[402510122,1768690278164,-500.0,0.00017808,3]
[402510124,1768690278173,-500.0,0.00017808,3]
[402510126,1768690278182,-1337.44,0.00017808,3]
[402510128,1768690278191,-531.66,0.00017808,3]
[402510130,1768690278200,-500.0,0.00017808,3]
[402510132,1768690278210,-709.13,0.00017808,3]
[402510134,1768690278219,-720.49,0.00017808,3]
[402510136,1768690278228,-1204.98,0.00017808,3]
[402510137,1768690278237,-564.62,0.00017808,3]
[402510140,1768690278247,-344.86270701,0.00017808,2]
[402510141,1768690278257,-500.0,0.00017808,3]
[402510144,1768690278267,-500.0,0.00017808,3]
[402510146,1768690278276,-568.78,0.00017808,3]
[402510148,1768690278287,-524.61736113,0.00017808,3]
[402510150,1768690278296,-760.21,0.00017808,3]
[402510152,1768690278305,-500.0,0.00017808,3]
[402510154,1768690278315,-500.0,0.00017808,3]
[402510156,1768690278329,-500.0,0.00017808,3]
[402510158,1768690278338,-500.0,0.00017808,3]
[402510160,1768690278348,-500.0,0.00017808,3]
[402510161,1768690278357,-500.0,0.00017808,3]
[402510164,1768690278368,-807.96,0.00017808,3]
[402510165,1768690278378,-1077.86,0.00017808,3]
[402510167,1768690278387,-643.96,0.00017808,3]
[402510169,1768690278398,-399.83976654,0.00017808,3]
[402510171,1768690278407,-500.0,0.00017808,3]
[402510173,1768690278417,-738.11,0.00017808,3]
[402510175,1768690278426,-500.0,0.00017808,3]
[402510177,1768690278435,-649.78,0.00017808,3]
[402510179,1768690278445,-500.0,0.00017808,3]
[402510181,1768690278454,-701.58,0.00017808,3]
[402510183,1768690278464,-764.69,0.00017808,3]
[402510185,1768690278474,-500.0,0.00017808,3]
[402510187,1768690278483,-1268.1,0.00017808,3]